[Event "IV Torneo de Semana Santa"]
[Site "Los Llanos de Aridane"]
[Date "2019.04.14"]
[Round "2.8"]
[White "Leon Varela, Luis"]
[Black "Alonso Perez, Alfredo"]
[Result "1/2-1/2"]
[ECO "D48"]
[WhiteElo "2154"]
[BlackElo "1735"]
[Annotator "NA"]
[PlyCount "102"]
[EventDate "2019.04.13"]
[EventType "swiss"]
[EventCountry "ESP"]
[SourceTitle "playchess.com"]
[Source "ChessBase"]
[SourceQuality "1"]
[TimeControl "5400+30"]

1. d4 {[%emt 0:00:00]} d5 {[%emt 0:00:00]} 2. c4 {[%emt 0:00:00]} c6 {[%emt 0:00:00]} 3. Nf3 {[%emt 0:00:03]} Nf6 {[%emt 0:00:00]} 4. e3 {[%emt 0:00:12]} e6 {[%emt 0:00:26]} 5. Nc3 {[%emt 0:00:05]} Nbd7 {[%emt 0:00:07]} 6. Bd3 {[%emt 0:00:15]} dxc4 {[%emt 0:00:09]} 7. Bxc4 {[%emt 0:00:02]} b5 {[%emt 0:00:15]} 8. Bd3 {[%emt 0:00:05]} a6 {[%emt 0:00:10]} 9. a4 {[%emt 0:08:56]} b4 {[%emt 0:05:28]} 10. Ne4 {[%emt 0:01:46]} c5 {[%emt 0:03:54]} 11. Nxf6+ {[%emt 0:15:52]} Nxf6 {[%emt 0:05:30]} 12. Ne5 {[%emt 0:18:07]} Bb7 {[%emt 0:02:33]} 13. a5 {[%emt 0:06:56]} Nd7 {[%emt 0:21:43]} 14. Qa4 {[%emt 0:00:00]} f6 {[%emt 0:00:11]} 15. Nc4 {[%emt 0:03:31]} Qc7 {[%emt 0:00:40]} 16. Nb6 {[%emt 0:38:17]} Rd8 {[%emt 0:12:20]} 17. Bc4 $17 {[%emt 0:00:02]} (17. O-O $11) 17... Bxg2 {[%emt 0:29:19]} 18. Rg1 {[%emt 0:01:21]} Qxh2 {[%emt 0:06:47]} 19. Rxg2 {[%emt 0:00:17]} Qxg2 {[%emt 0:00:37]} 20. Bxe6 {[%emt 0:00:03]} Qb7 {[%emt 0:01:46]} 21. Bd5 {[%emt 0:02:40]} Qc7 {[%emt 0:03:19]} 22. Bd2 {[%emt 0:00:05]} Ke7 {[%emt 0:01:52]} 23. Rc1 {[%emt 0:01:44]} Nxb6 {[%emt 0:01:52]} 24. axb6 {[%emt 0:00:01]} Qxb6 {[%emt 0:00:17]} 25. Rxc5 {[%emt 0:00:02]} Rxd5 {[%emt 0:01:23]} 26. Rxd5 {[%emt 0:00:27]} Kf7 {[%emt 0:01:03]} 27. Ra5 {[%emt 0:01:45]} Be7 {[%emt 0:01:04]} 28. Rxa6 {[%emt 0:00:01]} Qb7 {[%emt 0:00:05]} 29. Ra7 {[%emt 0:00:12]} Qh1+ {[%emt 0:00:40]} 30. Ke2 {[%emt 0:00:04]} Qh5+ {[%emt 0:00:11]} 31. f3 {[%emt 0:00:16]} Qh2+ {[%emt 0:00:16]} 32. Kd3 {[%emt 0:00:02]} Re8 {[%emt 0:01:06]} 33. Bxb4 {[%emt 0:00:04]} Qxb2 {[%emt 0:00:29]} 34. Bc5 {[%emt 0:02:23]} Qb1+ {[%emt 0:00:24]} 35. Ke2 {[%emt 0:00:02]} Qb2+ {[%emt 0:00:26]} 36. Kd3 {[%emt 0:01:04]} Qb1+ {[%emt 0:00:10]} 37. Qc2 {[%emt 0:01:16]} Qxc2+ {[%emt 0:00:09]} 38. Kxc2 {[%emt 0:00:00]} Kf8 {[%emt 0:00:14]} 39. Kd3 {[%emt 0:00:23]} h5 {[%emt 0:00:32]} 40. Rxe7 {[%emt 0:01:02]} Rxe7 {[%emt 0:00:13]} 41. e4 {[%emt 0:00:01]} Ke8 {[%emt 0:00:19]} 42. Bxe7 {[%emt 0:00:07]} Kxe7 {[%emt 0:00:07]} 43. Ke3 {[%emt 0:00:12]} g5 {[%emt 0:02:49]} 44. Kf2 {[%emt 0:00:02]} Ke6 {[%emt 0:00:20]} 45. Kg2 {[%emt 0:00:03]} f5 {[%emt 0:00:20]} 46. Kh2 {[%emt 0:00:42]} fxe4 {[%emt 0:00:24]} 47. fxe4 {[%emt 0:00:02]} Kf6 {[%emt 0:00:27]} 48. Kg3 {[%emt 0:00:04]} Ke6 {[%emt 0:00:27]} 49. Kf3 {[%emt 0:00:02]} Kf6 {[%emt 0:00:40]} 50. Kg3 {[%emt 0:00:01]} Ke6 {[%emt 0:00:10]} 51. Kf3 {[%emt 0:00:02]} Kf6 {[%emt 0:00:08]} 1/2-1/2

[Event "IV Torneo de Semana Santa"]
[Site "Los Llanos de Aridane"]
[Date "2019.04.14"]
[Round "2.9"]
[White "Ramos Perez, Felipe"]
[Black "Hidalgo Santana, Fernando"]
[Result "0-1"]
[ECO "B08"]
[WhiteElo "1667"]
[BlackElo "2116"]
[Annotator "NA"]
[PlyCount "74"]
[EventDate "2019.04.13"]
[EventType "swiss"]
[EventCountry "ESP"]
[SourceTitle "playchess.com"]
[Source "ChessBase"]
[SourceQuality "1"]
[TimeControl "5400+30"]

1. e4 {[%emt 0:00:00]} d6 {[%emt 0:06:05]} 2. d4 {[%emt 0:00:00]} Nf6 {[%emt 0:00:07]} 3. Nc3 {[%emt 0:00:00]} g6 {[%emt 0:00:13]} 4. Nf3 {[%emt 0:00:06]} Bg7 {[%emt 0:00:07]} 5. Be2 {[%emt 0:00:22]} O-O {[%emt 0:00:10]} 6. O-O {[%emt 0:00:11]} c6 {[%emt 0:00:14]} 7. a4 {[%emt 0:03:05]} Qc7 {[%emt 0:00:29]} 8. h3 {[%emt 0:02:29]} e5 {[%emt 0:00:22]} 9. dxe5 {[%emt 0:02:47]} dxe5 {[%emt 0:00:07]} 10. Be3 {[%emt 0:00:44]} Nbd7 {[%emt 0:00:09]} 11. Qd2 {[%emt 0:02:32]} b6 {[%emt 0:00:14] B08: Pirc Defence: Classical System} (11... Re8 12. Rfd1 Bf8 13. Bc4 Nc5 14. Ng5 Be6 15. Qe2 a5 16. Bxc5 Bxc5 17. Bxe6 fxe6 18. Qc4 Qe7 19. Nf3 Bd6 20. Ne2 Rad8 {1-0 (47) Efimenko,Z (2654)-Mamedov,R (2626) Ohrid 2009}) 12. Rad1 {[%emt 0:01:39]} Bb7 {[%emt 0:00:48]} 13. Qd6 {[%emt 0:03:33]} Rfc8 {[%emt 0:00:11]} 14. Bc4 {[%emt 0:05:37]} h6 $146 {[%emt 0:02:05]} ({Predecessor:} 14... Qxd6 15. Rxd6 Bf8 {1-0 (41) Malisauskas,V (2505)-Urban,K (2395) Warsaw 1991}) 15. Qxc7 {[%emt 0:10:07]} Rxc7 {[%emt 0:00:10]} 16. Bb3 {[%emt 0:00:15]} a6 {[%emt 0:00:16]} 17. Nd2 {[%emt 0:00:59]} b5 {[%emt 0:01:20]} 18. f4 {[%emt 0:03:15]} Nh5 {[%emt 0:03:54]} 19. fxe5 {[%emt 0:02:35]} Nxe5 {[%emt 0:00:08]} 20. Nf3 {[%emt 0:01:54]} Ng3 {[%emt 0:07:07]} 21. Rf2 {[%emt 0:10:27]} b4 {[%emt 0:11:45]} 22. Nxe5 {[%emt 0:02:55]} bxc3 {[%emt 0:01:00]} 23. Nxf7 {[%emt 0:01:48]} Kh7 {[%emt 0:02:36]} 24. Bf4 {[%emt 0:02:28]} Rxf7 {[%emt 0:02:55]} 25. Bxf7 {[%emt 0:02:44]} Nxe4 {[%emt 0:01:00]} 26. Re2 {[%emt 0:10:14]} c5 {[%emt 0:00:16]} 27. Rd7 {[%emt 0:05:01]} Bc6 {[%emt 0:02:03]} 28. Rc7 {[%emt 0:01:21]} cxb2 {[%emt 0:01:37]} 29. Bxg6+ {[%emt 0:02:17]} Kxg6 {[%emt 0:00:33]} 30. Rxc6+ {[%emt 0:00:16]} Kf5 {[%emt 0:00:07]} 31. Rb6 {[%emt 0:05:51]} Kxf4 {[%emt 0:00:10]} 32. g3+ {[%emt 0:03:02]} Kf3 {[%emt 0:02:17]} 33. Rg2 {[%emt 0:01:45]} Rd8 {[%emt 0:01:13]} 34. Rb3+ {[%emt 0:01:00]} Bc3 {[%emt 0:00:07]} 35. Kh2 {[%emt 0:01:38]} Rd1 {[%emt 0:00:42]} 36. Rb7 {[%emt 0:00:54]} Bb4 {[%emt 0:02:05]} 37. Rf7+ {[%emt 0:00:00]} Ke3 {[%emt 0:00:12]} 0-1

[Event "IV Torneo de Semana Santa"]
[Site "Los Llanos de Aridane"]
[Date "2019.04.14"]
[Round "3.5"]
[White "Guerra Arrocha, Daniel"]
[Black "Hernandez Leon, Alberto"]
[Result "1/2-1/2"]
[ECO "B52"]
[WhiteElo "2065"]
[BlackElo "2280"]
[Annotator "NA"]
[PlyCount "42"]
[EventDate "2019.04.13"]
[EventType "swiss"]
[EventCountry "ESP"]
[SourceTitle "playchess.com"]
[Source "ChessBase"]
[SourceQuality "1"]
[TimeControl "5400+30"]

1. e4 {[%emt 0:06:35]} c5 {[%emt 0:00:00]} 2. Nf3 {[%emt 0:00:06]} d6 {[%emt 0:00:00]} 3. Bb5+ {[%emt 0:00:05]} Bd7 {[%emt 0:00:34]} 4. Bxd7+ {[%emt 0:00:06]} Qxd7 {[%emt 0:00:07]} 5. O-O {[%emt 0:00:06]} Nf6 {[%emt 0:00:25]} 6. Re1 {[%emt 0:00:06]} Nc6 {[%emt 0:00:07]} 7. c3 {[%emt 0:00:04]} e6 {[%emt 0:00:21]} 8. d4 {[%emt 0:00:05]} cxd4 {[%emt 0:00:05]} 9. cxd4 {[%emt 0:00:04]} d5 {[%emt 0:00:08]} 10. e5 {[%emt 0:00:04]} Ne4 {[%emt 0:00:08]} 11. Nbd2 {[%emt 0:00:04]} Nxd2 {[%emt 0:00:07]} 12. Bxd2 {[%emt 0:00:06]} Be7 {[%emt 0:00:13]} 13. Rc1 {[%emt 0:00:05]} O-O {[%emt 0:00:11]} 14. a3 {[%emt 0:00:06]} Rfc8 {[%emt 0:00:22]} 15. Rc3 {[%emt 0:00:05]} Nd8 {[%emt 0:01:44]} 16. Rd3 {[%emt 0:02:00]} Qc7 {[%emt 0:00:51]} 17. Rc3 {[%emt 0:02:13]} Qb6 {[%emt 0:04:00]} 18. Rb3 {[%emt 0:00:10]} Qc7 {[%emt 0:00:35]} 19. Rc3 {[%emt 0:04:16]} Qb6 {[%emt 0:00:33]} 20. Rb3 {[%emt 0:04:33]} Qc7 {[%emt 0:00:12]} 21. Rc3 {[%emt 0:00:21]} Qb6 {[%emt 0:00:02]} 1/2-1/2

[Event "IV Torneo de Semana Santa"]
[Site "Los Llanos de Aridane"]
[Date "2019.04.14"]
[Round "3.6"]
[White "Hernandez Capote, Carmen"]
[Black "Rodriguez Lorenzo, Yadira"]
[Result "0-1"]
[ECO "E07"]
[WhiteElo "1703"]
[BlackElo "1966"]
[Annotator "NA RC"]
[PlyCount "80"]
[EventDate "2019.04.13"]
[EventType "swiss"]
[EventCountry "ESP"]
[SourceTitle "playchess.com"]
[Source "ChessBase"]
[SourceQuality "1"]
[TimeControl "5400+30"]

1. Nf3 {[%emt 0:00:00]} Nf6 {[%emt 0:00:00]} 2. c4 {[%emt 0:00:00]} e6 {[%emt 0:00:00]} 3. g3 {[%emt 0:00:00]} d5 {[%emt 0:00:15]} 4. Bg2 {[%emt 0:00:50]} Be7 {[%emt 0:00:46]} 5. O-O {[%emt 0:00:14]} O-O {[%emt 0:00:03]} 6. d4 {[%emt 0:00:09]} Nbd7 {[%emt 0:04:26]} 7. b3 {[%emt 0:02:43]} Re8 {[%emt 0:04:50] E07: Closed Catalan: Main Line (5 Nf3 0-0 6 0-0 Nbd7)} (7... dxc4 8. bxc4 c5 9. e3 Qc7 10. Qb3 b6 11. Nc3 Bb7 12. Nb5 Qc8 13. Bb2 cxd4 14. exd4 a6 15. Nc3 b5 16. cxb5 axb5 17. Rfc1 b4 {½-½ (17) Kovalyov,A (2652)-Shimanov,A (2641) Columbus 2017}) 8. Bb2 {[%emt 0:00:22]} Ne4 {[%emt 0:01:04]} 9. Nbd2 {[%emt 0:01:00]} Nxd2 $146 {[%emt 0:05:23]} ({Predecessor:} 9... Ndf6 10. Ne5 Nxd2 11. Qxd2 Bd7 12. Rfe1 Rc8 13. Rad1 c6 14. e4 Qc7 15. Rc1 dxe4 16. Bxe4 {1-0 (30) Regert,C-Gaede,D Germany 1997}) 10. Nxd2 {[%emt 0:00:55]} Nf6 {[%emt 0:00:23]} 11. e4 {[%emt 0:00:56]} dxe4 {[%emt 0:02:29]} 12. Nxe4 {[%emt 0:00:15]} Nxe4 {[%emt 0:03:18]} 13. Bxe4 {[%emt 0:02:13]} Bf6 {[%emt 0:00:01]} 14. Qc2 {[%emt 0:01:39]} Bxd4 {[%emt 0:12:39]} 15. Rad1 {[%emt 0:01:21]} e5 {[%emt 0:02:03]} 16. Bxh7+ {[%emt 0:01:44]} Kh8 {[%emt 0:00:01]} 17. Bf5 {[%emt 0:01:57]} c5 {[%emt 0:00:32]} 18. h4 {[%emt 0:06:44]} Qf6 {[%emt 0:06:45]} 19. Bxc8 {[%emt 0:01:50]} Raxc8 {[%emt 0:00:02]} 20. Bc1 {[%emt 0:00:44]} e4 {[%emt 0:02:35]} 21. Qe2 {[%emt 0:06:14]} Qg6 {[%emt 0:10:37]} 22. Kg2 {[%emt 0:03:52]} Rc6 {[%emt 0:02:48]} 23. h5 {[%emt 0:08:19]} Qf5 {[%emt 0:10:01]} 24. Be3 {[%emt 0:07:43]} Qe5 {[%emt 0:02:31]} 25. Rh1 {[%emt 0:02:53]} Rf6 {[%emt 0:01:29]} 26. h6 {[%emt 0:10:41]} ({Better is} 26. Rh4 $11) 26... g6 {[%emt 0:02:20]} 27. Bf4 {[%emt 0:05:27]} (27. Qd2 $15) 27... Qf5 {[%emt 0:01:09]} 28. b4 $17 {[%emt 0:07:15]} (28. h7 $15) 28... b6 {[%emt 0:02:23]} 29. bxc5 {[%emt 0:01:51]} bxc5 {[%emt 0:00:08]} 30. Rb1 {[%emt 0:02:14]} g5 {[%emt 0:00:42]} 31. Rh5 {[%emt 0:00:21]} gxf4 {[%emt 0:00:14]} 32. Rxf5 {[%emt 0:02:21]} f3+ {[%emt 0:00:08]} 33. Kg1 {[%emt 0:00:18]} fxe2 {[%emt 0:00:05]} 34. Rxf6 {[%emt 0:00:21]} Bxf6 {[%emt 0:00:07]} 35. Re1 {[%emt 0:00:41]} Kh7 {[%emt 0:00:38]} 36. Rxe2 {[%emt 0:01:03]} Kxh6 {[%emt 0:00:14]} 37. f4 {[%emt 0:01:39]} Bd4+ {[%emt 0:00:29]} 38. Kg2 {[%emt 0:00:19]} f5 {[%emt 0:00:08]} 39. Re1 {[%emt 0:01:20]} Rb8 {[%emt 0:00:05]} 40. Re2 {[%emt 0:00:36]} Rb2 {[%emt 0:00:27]} 0-1

[Event "IV Torneo de Semana Santa"]
[Site "Los Llanos de Aridane"]
[Date "2019.04.14"]
[Round "3.7"]
[White "Haertl, Siegfried"]
[Black "Nordgreen, Jan Thomas"]
[Result "1-0"]
[ECO "E91"]
[WhiteElo "1911"]
[BlackElo "1451"]
[Annotator "NA"]
[PlyCount "67"]
[EventDate "2019.04.13"]
[EventType "swiss"]
[EventCountry "ESP"]
[SourceTitle "playchess.com"]
[Source "ChessBase"]
[SourceQuality "1"]
[TimeControl "5400+30"]

1. d4 {[%emt 0:00:39]} Nf6 {[%emt 0:00:00]} 2. Nf3 {[%emt 0:00:59]} g6 {[%emt 0:00:00]} 3. c4 {[%emt 0:00:16]} Bg7 {[%emt 0:00:09]} 4. Nc3 {[%emt 0:00:09]} d6 {[%emt 0:00:18]} 5. e4 {[%emt 0:00:17]} Bg4 {[%emt 0:00:18]} 6. Be2 {[%emt 0:00:48]} O-O {[%emt 0:00:27]} 7. h3 {[%emt 0:02:33]} Bxf3 {[%emt 0:00:17]} 8. Bxf3 {[%emt 0:01:03]} Nc6 {[%emt 0:03:47]} 9. Be3 {[%emt 0:00:29]} Qd7 {[%emt 0:01:24]} 10. Qd2 {[%emt 0:01:16]} Rad8 {[%emt 0:02:01]} 11. O-O {[%emt 0:02:01]} e6 {[%emt 0:01:24]} 12. Rab1 {[%emt 0:01:08]} Rc8 {[%emt 0:04:29]} 13. b4 {[%emt 0:00:56]} Ne7 {[%emt 0:01:06]} 14. Bh6 {[%emt 0:03:52]} d5 {[%emt 0:00:46]} 15. Bxg7 {[%emt 0:01:21]} Kxg7 {[%emt 0:00:08]} 16. e5 {[%emt 0:00:21]} Nfg8 {[%emt 0:00:52]} 17. cxd5 {[%emt 0:03:56]} Nxd5 {[%emt 0:00:20]} 18. Bxd5 {[%emt 0:00:38]} exd5 {[%emt 0:00:09]} 19. f4 {[%emt 0:01:36]} Ne7 {[%emt 0:01:22]} 20. Nd1 {[%emt 0:03:45]} b6 {[%emt 0:01:03]} 21. Rc1 {[%emt 0:02:05]} Qb5 {[%emt 0:01:29]} 22. Ne3 {[%emt 0:00:51]} c5 {[%emt 0:03:18]} 23. bxc5 {[%emt 0:00:31]} bxc5 {[%emt 0:00:11]} 24. f5 {[%emt 0:01:06]} gxf5 {[%emt 0:02:15]} 25. Nxf5+ {[%emt 0:02:50]} Nxf5 {[%emt 0:00:07]} 26. Qg5+ {[%emt 0:00:18]} Kh8 {[%emt 0:00:23]} 27. Qxf5 {[%emt 0:00:09]} Qb4 {[%emt 0:01:19]} 28. Qf6+ {[%emt 0:00:36]} Kg8 {[%emt 0:00:15]} 29. Rf4 {[%emt 0:00:09]} Qxd4+ {[%emt 0:02:26]} 30. Rxd4 {[%emt 0:00:46]} cxd4 {[%emt 0:00:03]} 31. Rxc8 {[%emt 0:00:41]} Rxc8 {[%emt 0:00:08]} 32. e6 {[%emt 0:01:07]} Rc1+ {[%emt 0:00:13]} 33. Kh2 {[%emt 0:00:16]} fxe6 {[%emt 0:00:13]} 34. Qg5+ {[%emt 0:01:09]} 1-0

[Event "IV Torneo de Semana Santa"]
[Site "Los Llanos de Aridane"]
[Date "2019.04.15"]
[Round "4.1"]
[White "Acosta Sosa, Juan Manuel"]
[Black "Rodriguez Ferraz, Borja"]
[Result "0-1"]
[ECO "A18"]
[WhiteElo "2287"]
[BlackElo "2212"]
[Annotator "RC"]
[PlyCount "120"]
[EventDate "2019.04.13"]
[EventType "swiss"]
[EventCountry "ESP"]
[SourceTitle "playchess.com"]
[Source "ChessBase"]
[SourceQuality "1"]
[TimeControl "5400+30"]

1. c4 {[%emt 0:00:00]} Nf6 {[%emt 0:00:00]} 2. Nc3 {[%emt 0:00:00]} e6 {[%emt 0:00:00]} 3. e4 {[%emt 0:00:28]} d6 {[%emt 0:01:12]} 4. d4 {[%emt 0:01:08]} Nbd7 {[%emt 0:00:10]} 5. Nf3 {[%emt 0:00:32]} c5 {[%emt 0:02:42]} 6. d5 {[%emt 0:00:30]} e5 {[%emt 0:03:24]} 7. Be2 {[%emt 0:04:07]} g6 {[%emt 0:00:11]} 8. h3 {[%emt 0:05:37]} Bg7 {[%emt 0:00:16]} 9. g4 {[%emt 0:03:26]} O-O {[%emt 0:02:17]} 10. Bg5 {[%emt 0:01:21]} a6 {[%emt 0:01:20]} 11. a4 {[%emt 0:03:51]} Qa5 {[%emt 0:05:33]} 12. Kf1 {[%emt 0:04:26]} Kh8 {[%emt 0:07:44]} 13. Ra3 {[%emt 0:09:05]} Qc7 {[%emt 0:01:29]} 14. Bd2 {[%emt 0:04:29]} Rb8 {[%emt 0:06:35]} 15. Qc1 {[%emt 0:03:24]} Ng8 {[%emt 0:07:13]} 16. h4 {[%emt 0:00:40]} Ndf6 {[%emt 0:00:26]} 17. g5 {[%emt 0:06:23]} Nh5 {[%emt 0:01:14]} 18. Ng1 {[%emt 0:07:49]} f5 {[%emt 0:01:39]} 19. Bxh5 {[%emt 0:00:31]} gxh5 {[%emt 0:00:02]} 20. Nge2 {[%emt 0:03:24]} Qf7 {[%emt 0:00:13]} 21. Rh2 {[%emt 0:04:24]} Ne7 {[%emt 0:00:34]} 22. Qd1 {[%emt 0:03:21]} f4 {[%emt 0:05:41]} 23. Rb3 {[%emt 0:02:15]} Qg6 {[%emt 0:02:21]} 24. f3 {[%emt 0:01:34]} h6 {[%emt 0:00:48]} 25. gxh6 {[%emt 0:00:08]} Bxh6 {[%emt 0:00:18]} 26. Be1 {[%emt 0:00:34]} Qg8 {[%emt 0:15:33]} 27. Bf2 {[%emt 0:02:08]} Rf6 {[%emt 0:00:10]} 28. a5 {[%emt 0:02:08]} Rg6 {[%emt 0:00:12]} 29. Rb6 {[%emt 0:03:36]} Bd7 {[%emt 0:11:44]} 30. Qb3 {[%emt 0:01:09]} Qc8 {[%emt 0:00:34]} 31. Qa3 {[%emt 0:02:18]} Qc7 {[%emt 0:01:23]} 32. b4 {[%emt 0:03:55]} Nc8 {[%emt 0:01:08]} 33. bxc5 {[%emt 0:00:34]} Nxb6 {[%emt 0:00:08]} 34. axb6 {[%emt 0:00:09]} Qc8 {[%emt 0:00:13]} 35. Qb2 {[%emt 0:01:56]} dxc5 {[%emt 0:01:36]} 36. Nc1 {[%emt 0:00:50]} Bf8 {[%emt 0:14:15]} 37. Nd3 {[%emt 0:00:58]} Bd6 {[%emt 0:00:29]} 38. Ne2 {[%emt 0:00:17]} Kh7 {[%emt 0:01:55]} 39. Nxe5 {[%emt 0:06:25]} Qh8 {[%emt 0:00:13]} 40. Nd3 {[%emt 0:00:03]} Qxb2 {[%emt 0:00:09]} 41. Nxb2 {[%emt 0:00:03]} a5 {[%emt 0:00:42]} 42. Nd3 {[%emt 0:00:17]} Rc8 {[%emt 0:01:41]} 43. Nc3 {[%emt 0:00:28]} Bf8 {[%emt 0:00:53]} 44. e5 {[%emt 0:01:21]} Rxb6 {[%emt 0:00:27]} 45. Nxf4 {[%emt 0:01:43]} a4 {[%emt 0:01:38]} 46. Nxh5 {[%emt 0:02:28]} Bf5 {[%emt 0:00:36]} 47. Nf6+ {[%emt 0:01:32]} Kh8 {[%emt 0:00:32]} 48. Nfe4 {[%emt 0:01:00]} a3 {[%emt 0:00:32]} 49. Bg3 {[%emt 0:02:08]} Rb2 {[%emt 0:01:15]} 50. d6 {[%emt 0:01:15]} Ra8 {[%emt 0:01:29]} 51. Nxc5 {[%emt 0:01:27]} a2 {[%emt 0:00:53]} 52. Nxa2 {[%emt 0:00:22]} Rxh2 {[%emt 0:00:41]} 53. Bxh2 {[%emt 0:00:06]} Rxa2 {[%emt 0:00:06]} 54. e6 {[%emt 0:00:25]} Rxh2 {[%emt 0:01:10]} 55. e7 {[%emt 0:00:38]} Bxe7 {[%emt 0:00:06]} 56. dxe7 {[%emt 0:00:01]} Bg6 {[%emt 0:00:09]} 57. Ne4 {[%emt 0:01:45]} Ra2 {[%emt 0:01:12]} 58. Nd6 {[%emt 0:00:16]} Ra8 {[%emt 0:00:11]} 59. f4 {[%emt 0:00:07]} Kg7 {[%emt 0:00:16]} 60. f5 {[%emt 0:00:11]} Be8 {[%emt 0:00:19]} 0-1

[Event "IV Torneo de Semana Santa"]
[Site "Los Llanos de Aridane"]
[Date "2019.04.15"]
[Round "4.2"]
[White "Molina Rodriguez, Borja"]
[Black "Brito Garcia, Alfredo"]
[Result "0-1"]
[ECO "C41"]
[WhiteElo "2070"]
[BlackElo "2311"]
[Annotator "RC"]
[PlyCount "62"]
[EventDate "2019.04.13"]
[EventType "swiss"]
[EventCountry "ESP"]
[SourceTitle "playchess.com"]
[Source "ChessBase"]
[SourceQuality "1"]
[TimeControl "5400+30"]

1. e4 {[%emt 0:00:00]} d6 {[%emt 0:00:04]} 2. d4 {[%emt 0:00:00]} Nf6 {[%emt 0:00:13]} 3. Nc3 {[%emt 0:00:05]} e5 {[%emt 0:00:09]} 4. Nf3 {[%emt 0:00:36]} Nbd7 {[%emt 0:00:37]} 5. Bc4 {[%emt 0:00:58]} Be7 {[%emt 0:00:29]} 6. dxe5 {[%emt 0:04:43]} dxe5 {[%emt 0:07:53]} 7. Bxf7+ {[%emt 0:03:14]} Kxf7 {[%emt 0:00:33]} 8. Ng5+ {[%emt 0:00:13]} Kg8 {[%emt 0:00:37]} 9. Ne6 {[%emt 0:00:28]} Qe8 {[%emt 0:01:02]} 10. Nxc7 {[%emt 0:01:09]} Qg6 {[%emt 0:06:55]} 11. Nxa8 {[%emt 0:01:12]} Qxg2 {[%emt 0:14:48]} 12. Rf1 {[%emt 0:00:48]} h6 {[%emt 0:00:13]} 13. Qe2 {[%emt 0:06:51]} Ng4 {[%emt 0:20:19]} 14. Be3 {[%emt 0:10:30]} Nxh2 {[%emt 0:05:22]} 15. O-O-O {[%emt 0:03:25]} Nxf1 {[%emt 0:00:31]} 16. Rxf1 {[%emt 0:05:07]} Bg5 {[%emt 0:06:40]} 17. Qc4+ {[%emt 0:22:33]} Kh7 {[%emt 0:00:56]} 18. Rd1 {[%emt 0:14:32]} Nf6 {[%emt 0:03:57]} 19. Nc7 {[%emt 0:03:33]} Bxe3+ {[%emt 0:03:54]} 20. fxe3 {[%emt 0:00:02]} Bg4 {[%emt 0:00:46]} 21. Rf1 {[%emt 0:08:22]} Rd8 {[%emt 0:03:21]} 22. b3 {[%emt 0:02:26]} Rd2 {[%emt 0:09:59]} 23. Rxf6 {[%emt 0:01:51]} Rxc2+ {[%emt 0:00:16]} 24. Kb1 {[%emt 0:00:06]} Rxc3 {[%emt 0:02:21]} 25. Rxh6+ {[%emt 0:00:18]} Kxh6 {[%emt 0:00:11]} 26. Qxc3 {[%emt 0:00:07]} Bf3 {[%emt 0:03:37]} 27. Qxe5 {[%emt 0:07:07]} Bxe4+ {[%emt 0:00:07]} 28. Ka1 {[%emt 0:00:05]} Qc2 {[%emt 0:01:04]} 29. Qf4+ {[%emt 0:02:11]} g5 {[%emt 0:01:05]} 30. Qf6+ {[%emt 0:00:16]} Kh5 {[%emt 0:00:26]} 31. Qf7+ {[%emt 0:00:35]} Kh4 {[%emt 0:00:17]} 0-1

[Event "IV Torneo de Semana Santa"]
[Site "Los Llanos de Aridane"]
[Date "2019.04.15"]
[Round "4.4"]
[White "Hernandez Leon, Alberto"]
[Black "Haertl, Siegfried"]
[Result "1-0"]
[ECO "D46"]
[WhiteElo "2280"]
[BlackElo "1911"]
[Annotator "NA RC"]
[PlyCount "43"]
[EventDate "2019.04.13"]
[EventType "swiss"]
[EventCountry "ESP"]
[SourceTitle "playchess.com"]
[Source "ChessBase"]
[SourceQuality "1"]
[TimeControl "5400+30"]

1. d4 {[%emt 0:00:00]} d5 {[%emt 0:00:00]} 2. c4 {[%emt 0:00:00]} c6 {[%emt 0:00:22]} 3. Nf3 {[%emt 0:00:07]} Nf6 {[%emt 0:00:21]} 4. e3 {[%emt 0:00:21]} e6 {[%emt 0:02:05]} 5. Nbd2 {[%emt 0:00:14]} Be7 {[%emt 0:00:19]} 6. Bd3 {[%emt 0:00:11]} O-O {[%emt 0:00:21]} 7. O-O {[%emt 0:00:15]} b6 {[%emt 0:00:38]} 8. e4 {[%emt 0:02:01]} dxe4 {[%emt 0:00:26]} 9. Nxe4 {[%emt 0:00:07]} Bb7 {[%emt 0:00:12]} 10. Qe2 {[%emt 0:04:40]} Nbd7 {[%emt 0:00:37]} 11. Rd1 {[%emt 0:12:51] D46: Semi-Slav: 5 e3 Nbd7 6 Bd3, Black avoids the Meran} (11. Nxf6+ Nxf6 12. Bg5 Qc7 13. Rfe1 Rfe8 14. Bc2 Rad8 15. a3 h6 16. Bh4 c5 17. d5 g5 18. Bg3 Bd6 {½-½ (34) Sjugirov,S (2669)-Potkin,V (2605) Moscow 2015}) 11... Re8 {[%emt 0:05:10]} 12. Ne5 {[%emt 0:11:28]} Nxe4 {[%emt 0:04:49]} 13. Qxe4 $146 {[%emt 0:02:10]} ({Predecessor:} 13. Bxe4 Nxe5 14. dxe5 Qc7 15. Rd3 Rad8 {½-½ (46) Serdt,S (2302)-Buzeti,J (2128) Celje 2007}) 13... Nf6 {[%emt 0:00:11]} 14. Qf3 {[%emt 0:01:58]} Qc8 {[%emt 0:01:20]} 15. Bg5 {[%emt 0:07:22]} c5 {[%emt 0:03:07]} 16. Qg3 {[%emt 0:14:18]} cxd4 {[%emt 0:03:21]} 17. Qh4 {[%emt 0:07:40]} Qc7 {[%emt 0:07:32]} 18. Ng4 {[%emt 0:13:39]} Ne4 $1 {[%emt 0:07:32]} 19. Bxe4 $11 {[%emt 0:00:24]} Bxg5 {[%emt 0:04:32]} 20. Qxg5 {[%emt 0:01:07]} Bxe4 {[%emt 0:00:42]} 21. Qh4 {[%emt 0:00:46]} Bb7 {[%emt 0:00:01]} 22. Nf6+ 1-0